Cogmind - Beta 13 @@@ ROGUE MODE // 2024.04.06 @ 12:28:05 Player: Susul Result: Destroyed by G-34 Mercenary with Small Laser Performance ------------- Evolutions (1) 500 Regions Visited (2) 400 Robots Destroyed (10) 50 Value Destroyed (240) 240 Prototype IDs (0) 0 Alien Tech Used (0) 0 Bonus (0) 0 TOTAL SCORE: 1190 Bonus ------- None Cogmind --------- Core Integrity 0/400 Matter 299/300 Energy 95/100 System Corruption 0% Temperature Cool (6) Movement Core (50) Location -9/Materials Parts ------- > --- POWER (1) -------- (None) > --- PROPULSION (3) --- (None) > --- UTILITY (3) ------ (None) > --- WEAPON (2) ------- (None) > --- INVENTORY (5) ---- Light Ion Engine Flight Unit Heat Sink Visual Processing Unit Plasma Cutter Peak State ------------ > --- POWER ------------ Ion Engine > --- PROPULSION ------- Aluminum Leg Aluminum Leg > --- UTILITY ---------- Medium Matter Pod Targeting Computer Targeting Computer > --- WEAPON ----------- Assault Rifle Light Assault Rifle > --- INVENTORY -------- Light Ion Engine Flight Unit Heat Sink Visual Processing Unit [Rating: 8] Favorites ----------- Power Ion Engine Engine Ion Engine Propulsion Aluminum Leg Leg Aluminum Leg Utility Targeting Computer Device Heat Sink Storage Medium Matter Pod Processor Targeting Computer Weapon Light Assault Rifle Energy Cannon Beam Cannon Ballistic Gun Light Assault Rifle Build | -11 -10 -9 ------- Run | Yrd Mat Mat Slots Evolved 2 | . . 2 Power . | . . . Propulsion 1 | . . 1 Utility 1 | . . 1 Weapon . | . . . Parts Attached 15 | 8 1 6 Power 2 | 2 . . Engine 2 | 2 . . Core . | . . . Reactor . | . . . Propulsion 3 | 2 . 1 Treads . | . . . Leg 3 | 2 . 1 Wheel . | . . . Hover . | . . . Flight . | . . . Utility 5 | 2 1 2 Device 2 | 1 . 1 Storage 1 | 1 . . Processor 2 | . 1 1 Hackware . | . . . Protection . | . . . Artifact . | . . . Weapon 5 | 2 . 3 Energy Gun . | . . . Energy Cannon 2 | . . 2 Ballistic Gun 3 | 2 . 1 Ballistic Cannon . | . . . Launcher . | . . . Special Weapon . | . . . Impact Weapon . | . . . Slashing Weapon . | . . . Piercing Weapon . | . . . Special Melee Weapon . | . . . Unidentified Prototypes . | . . . Parts Lost 6 | . . 6 Power 1 | . . 1 Propulsion 3 | . . 3 Utility . | . . . Weapon 2 | . . 2 Highest Loss Streak 4 | . . 4 To Critical Strikes . | . . . Average Slot Usage (%) 78 | . 100 57 Engine 8 | . 14 3 Leg 17 | . 28 7 Device 5 | . 9 1 Storage 11 | . 14 8 Processor 10 | . 4 18 Energy Cannon 4 | . . 10 Ballistic Gun 18 | . 28 9 Naked Turns 9 | . . 9 Heaviest Build 11 | 11 11 10 Greatest Support 20 | 20 20 20 Greatest Overweight (x) 2 | . . 2 Average Overweight (x) . | . . . Largest Inventory Capacity 5 | 5 5 5 Average Capacity 5 | 5 5 5 Most Carried 5 | 1 5 5 Average Carried 2 | . 2 4 Final Capacity 5 | 5 5 5 Final Carried 5 | 1 5 5 Class Distribution -------------------- 100% | Mutant Dominant Class ---------------- Mutant | -10/Materials Mutant | -9/Materials Resources | -11 -10 -9 ----------- Run | Yrd Mat Mat Matter Collected 419 | 343 56 20 Remotely . | . . . Salvage Created 286 | 56 67 163 Parts 27 | 8 10 9 Haulers Intercepted . | . . . Recyclers Shooed . | . . . Parts Field Recycled . | . . . Retrieved Matter . | . . . Parts Self-Destructed . | . . . Prevented . | . . . Kills | -11 -10 -9 ------- Run | Yrd Mat Mat Combat Hostiles Destroyed 8 | 1 3 4 Guns 6 | 1 3 2 Cannons 2 | . . 2 Classes Destroyed 4 | 2 2 . Worker 1 | 1 . . Watcher 1 | . 1 . Swarmer 3 | . 3 . Grunt 5 | 1 . 4 Best Kill Streak 2 | 1 2 2 Combat Bots Only 2 | 1 2 2 Max Kills in Single Turn 1 | 1 1 1 Gunslinging . | . . . Exploded . | . . . Melee . | . . . Uniques/NPCs Destroyed . | . . . Combat | -11 -10 -9 -------- Run | Yrd Mat Mat Hostile Shots Fired 133 | 4 27 102 Missed 42 | 1 10 31 Damage Taken 1093 | 34 130 929 Core 442 | . 33 409 Absorbed by Shields 4 | . . 4 Core Remaining (%) 93 | 100 86 . Volleys Fired 36 | 5 8 23 Largest 2 | 2 2 2 Hottest 116 | 40 40 116 Shots Fired 67 | 10 16 41 Gun 53 | 10 16 27 Cannon 14 | . . 14 Launcher . | . . . Special . | . . . Kinetic 53 | 10 16 27 Thermal 9 | . . 9 Explosive . | . . . Electromagnetic 5 | . . 5 Robot Hit Streak 9 | 5 4 9 Robot Miss Streak 4 | 3 4 3 Penetration Max . | . . . Secondary Targets 1 | . . 1 Max Gunslinging Chain 1 | . . 1 Shots Hit Robots 45 | 6 7 32 Core Hits 18 | 3 5 10 Critical Kills . | . . . Critical Parts Destroyed . | . . . Critical Strikes . | . . . Melee Attacks . | . . . Impact . | . . . Slashing . | . . . Piercing . | . . . Sneak Attacks . | . . . Combat Hostiles . | . . . Follow-up Attacks . | . . . Damage Inflicted 621 | 59 94 468 Guns 367 | 59 94 214 Cannons 254 | . . 254 Explosions . | . . . Melee . | . . . Ramming . | . . . Kinetic 367 | 59 94 214 Thermal 159 | . . 159 Explosive . | . . . Electromagnetic 95 | . . 95 Impact . | . . . Slashing . | . . . Piercing . | . . . Highest Corruption . | . . . Average Corruption . | . . . Corruption Purged . | . . . Corruption Blocked . | . . . Overload Shots . | . . . Overflow Damage 6 | . . 6 Projectiles 6 | . . 6 Explosions . | . . . Melee . | . . . Knockbacks . | . . . Impact . | . . . Kinetic . | . . . Secondary . | . . . Self-Inflicted Damage . | . . . Shots . | . . . Rammed . | . . . Targets Rammed . | . . . Kicked . | . . . Crushed . | . . . Highest Temperature 115 | 12 . 115 Average Temperature 35 | 7 . 37 Received Heat Transfer 468 | 18 . 450 Siege Activations . | . . . Robots Corrupted . | . . . Combat Hostiles . | . . . Parts Fried . | . . . Impact Corruptions . | . . . Robots Melted . | . . . Combat Hostiles . | . . . Parts Melted . | . . . Heat Transferred 333 | . . 333 Parts Sabotaged . | . . . Parts Stolen . | . . . Parts Stripped . | . . . Power Chain Reactions . | . . . Alert | -11 -10 -9 ------- Run | Yrd Mat Mat Peak Influence 220 | 25 155 220 Initial 65 | . 16 65 Average 97 | 6 104 132 Maximum Alert Level 1 | . . 1 Low Security (%) 89 | 100 100 73 Level 1 10 | . . 26 Level 2 . | . . . Level 3 . | . . . Level 4 . | . . . Level 5 . | . . . High Security . | . . . Max Security . | . . . Squads Dispatched 1 | . . 1 Investigation 1 | . . 1 Extermination . | . . . Reinforcement . | . . . Assault . | . . . Garrison . | . . . Intercept . | . . . Searches Triggered . | . . . Construction Impeded . | . . . Haulers Reinforced . | . . . Active Scanning Responses . | . . . Cargo Convoy Interrupts . | . . . Stealth | -11 -10 -9 --------- Run | Yrd Mat Mat Distress Signals 1 | . 1 . Communications Jammed . | . . . Distress Signals . | . . . Times Spotted 24 | 1 8 15 Peak Tracking Total 8 | 1 4 8 Tactical Retreats 4 | . 1 3 Traps | -11 -10 -9 ------- Run | Yrd Mat Mat Traps Triggered 1 | . . 1 Indirectly . | . . . Trap Hack Attempts . | . . . Triggered . | . . . Disarmed . | . . . Reprogrammed . | . . . Reused . | . . . Traps Extracted . | . . . Installed . | . . . Triggered . | . . . Machines | -11 -10 -9 ---------- Run | Yrd Mat Mat Machines Disabled 1 | . . 1 Max in Single Turn 1 | . . 1 Machines Repaired . | . . . Machines Dismantled . | . . . Machines Sabotaged . | . . . Overloaded Fab Kills . | . . . Hacking | -11 -10 -9 --------- Run | Yrd Mat Mat Machines Accessed 2 | . 1 1 Terminals 2 | . 1 1 Fabricators . | . . . Repair Stations . | . . . Recycling Units . | . . . Scanalyzers . | . . . Garrison Access . | . . . Total Hacks 6 | . 3 3 Successful 2 | . 1 1 Failed 4 | . 2 2 Catastrophic 2 | . . 2 Database Lockouts . | . . . Manual . | . . . Terminals 6 | . 3 3 Fabricators . | . . . Repair Stations . | . . . Recycling Units . | . . . Scanalyzers . | . . . Garrison Access . | . . . Terminal Hacks 2 | . 1 1 Record 1 | . 1 . Security Status 1 | . . 1 Fabricator Hacks . | . . . Repair Station Hacks . | . . . Recycling Unit Hacks . | . . . Scanalyzer . | . . . Garrison Access Hacks . | . . . Unauthorized Hacks . | . . . Terminals . | . . . Fabricators . | . . . Repair Stations . | . . . Recycling Units . | . . . Scanalyzers . | . . . Garrison Access . | . . . Data Cores Recovered . | . . . Used . | . . . Hacking Detections 2 | . 1 1 Full Trace Events 2 | . 1 1 Feedback Events . | . . . Feedback Blocked . | . . . Robot Schematics Acquired . | . . . Robots Built . | . . . Authchips . | . . . Time . | . . . Total Robot Build Rating . | . . . Part Schematics Acquired . | . . . Parts Built . | . . . Authchips . | . . . Time . | . . . Total Part Build Rating . | . . . Parts Repaired . | . . . Time . | . . . Parts Recycled . | . . . Recycled Matter . | . . . Retrieved Matter . | . . . Retrieved Components . | . . . Parts Scanalyzed . | . . . Part Schematics Acquired . | . . . Parts Damaged . | . . . Bothacking | -11 -10 -9 ------------ Run | Yrd Mat Mat Used RIF Installer . | . . . Robots Hacked . | . . . Non-combat . | . . . Combat . | . . . Robot Hacks Applied . | . . . Relay Couplers Released . | . . . Fabnet Peak Effective % . | . . . Robots Rewired . | . . . Allies Hacked . | . . . Hacks Repelled . | . . . Allies | -11 -10 -9 -------- Run | Yrd Mat Mat Total Allies . | . . . Largest Group . | . . . Highest-Rated Group . | . . . Highest-Rated Ally . | . . . Total Orders . | . . . Ally Attacks . | . . . Total Damage . | . . . Kills . | . . . Allies Corrupted . | . . . Allies Melted . | . . . Intel | -11 -10 -9 ------- Run | Yrd Mat Mat Robot Analysis Total . | . . . Derelict Logs Recovered . | . . . Drone Launches . | . . . Drone Recoveries . | . . . Exploration | -11 -10 -9 ------------- Run | Yrd Mat Mat Turns Passed 557 | 104 226 227 Spaces Moved 378 | 78 166 134 Core 107 | 21 . 86 Treads . | . . . Legs 271 | 57 166 48 Wheels . | . . . Hover . | . . . Flight . | . . . Fastest Speed 50 | 50 120 50 Average Speed 114 | 101 120 115 Slowest Speed 150 | 120 120 150 Overloaded Moves . | . . . Propulsion Burnouts . | . . . Robots Hopped . | . . . Cave-ins Triggered . | . . . Exploration Rate (%) 16 | 6 29 13 Regions Visited 2 Branch Regions . Pre-discovered Areas . | . . . Known Exits Taken . | . . . Unknown Exits Taken 2 | 1 1 . Scrap Searched . | . . . Spaces Dug . | . . . Terrain Destroyed . | . . . Melee . | . . . Projectile . | . . . AOE . | . . . Terrain Rammed . | . . . Walls Destroyed . | . . . Machines Disabled . | . . . Actions | -11 -10 -9 --------- Run | Yrd Mat Mat Total 437 | 90 178 169 Wait 1 | . . 1 Move 376 | 77 165 134 Hop . | . . . Pick Up 6 | . 3 3 Fast Attach 11 | 7 1 3 Attach 3 | . . 3 Detach 1 | . 1 . Swap 1 | 1 . . Drop 2 | . . 2 Fire 36 | 5 8 23 Melee . | . . . Ram . | . . . Kick . | . . . Crush . | . . . Escape Stasis . | . . . Rewire . | . . . Trap . | . . . Miscellaneous . | . . . Route ------- -11/Scrapyard -10/Materials (discovered 3 exits: *Mat x2 / [*Min]) -9/Materials History --------- Turn | Location | Event 2 | -11/Scrapyard | Met Revision 17 72 | -11/Scrapyard | Discovered new exit (range 8) 105 | -11/Scrapyard | Entered Materials 227 | -10/Materials | Discovered new exit (range 9) 240 | -10/Materials | Discovered new exit (range 16) 305 | -10/Materials | Build established: Mutant 319 | -10/Materials | Discovered new exit (range 8) 331 | -10/Materials | Entered another Materials area 331 | -9/Materials | Evolved 2 slots: Propulsion x1, Utility x1 420 | -9/Materials | Core integrity fell below 50% 441 | -9/Materials | Lost 4 parts (1p2n1w) 522 | -9/Materials | Core integrity fell below 20% 525 | -9/Materials | Released all parts (5) 558 | -9/Materials | Destroyed by G-34 Mercenary with Small Laser Last Messages --------------- Material Compactor disabled. To regain energy, simply wait via the mouse wheel, '.', or KP5. Also make sure your per-turn energy generation is a net positive, and consider deactivating power-draining parts if not. G-34 Mercenary destroyed. Dropped Med. Matter Pod. Acquired Shield Generator. M-13 Machinist repairs G-47 Trooper. Released Beam Cannon. Released Targeting Computer. Released Lgt. EM Pulse Cannon. Released Shield Generator. Acquired 10 matter. Acquired Aluminum Leg. Acquired 10 matter. Acquired Lgt. Assault Rifle. Lgt. Assault Rifle destroyed. Aluminum Leg destroyed. Map ----- +----------------------------------------------------+ | | | | | ?????????????????????????????????????????????? | | ?????????????##########??????????????????????? | | ?????????????# #??????????????????????? | | ?????????????# """ #??????????????????????? | | ?????????????#! """"" #??????????????????????? | | ?????????????#]]""""" ############+##+#??????? | | ?????????????#! """"" # ###????? | | ?????????????# "" # ""#????? | | ?????????????# *+% " """"""" T"#????? | | ?????????????#######+## T """"""" ""?????? | | ??????????????????? # " """"""" #??????? | | ?????????????#????? # """"""" #??????? | | ?????????????# ??? # """"%"" #??????? | | ?????????????# ?? """# ######## | | ?????????????# ? """# | | ?????????????# """# | | ?????????????# """# ############### | | ?????????????? ???# #???????# "" | | ??????????????? ???# #???????# """ | | ???????????????###/##?# #???????# """ | | ????????? ##### g ## #???????# """ | | ???????# g #???????# "" | | ???????+ u T +???????# | | ???????# @ #???????# | | ???????????##### ###########???????# | | ???????????????## #??????????????????####### | | ????????????????# ?????????????????????????? | | ????????????????# ??????????????????????????? | | ????????????????# ??????????????????????????? | | ????????????????# ???????????????????????????? | | ????????????????#????????????????????????????? | | ?????????????????????????????????????????????? | | ?????????????????????????????????????????????? | | ?????????????????????????????????????????????? | | ?????????????????????????????????????????????? | | ?????????????????????????????????????????????? | | ?????????????????????????????????????????????? | | ?????????????????????????????????????????????? | | ?????????????????????????????????????????????? | | ?????????????????????????????????????????????? | | ?????????????????????????????????????????????? | | ?????????????????????????????????????????????? | | ?????????????????????????????????????????????? | | ?????????????????????????????????????????????? | | ?????????????????????????????????????????????? | | ?????????????????????????????????????????????? | | ?????????????????????????????????????????????? | | ?????????????????????????????????????????????? | +----------------------------------------------------+ Best States ------------- Heat Dissipation 35 Energy Generation 10 Energy Capacity 250 Matter Stores 396 Matter Capacity 400 Sight Range 16 Terrain Scan Density 10 Evasion (%) 55 Targeting Accuracy 10 Item Schematics ----------------- None Robot Schematics ------------------ None Fabricated ------------ Nothing Alien Tech Used ----------------- None Achievements -------------- None Challenges ------------ None Game ------ Seed MultinovaNullLeg Manual? 0 Play Time 00:12:57 Cumulative 0.8 hours Start 2024.04.06 @ 12:17:03 End 2024.04.06 @ 12:28:05 Sessions 1 Manual Loads 0 Difficulty Rogue Special Mode None Game No. 2 Rogue 2 Adventurer 0 Explorer 0 Win Type - Total 0 Types 0/0/0/0/0/0/0/0/0 Lore% 0 Gallery% 1 Achievement% 1 Wizard Run 0 Options --------- Layout 1 ASCII 0 Keyboard 1 Movement Arrows Keybinds 0 Fullscreen 1 Font 32/SmallcapsGlow Map View 50x35 Zoom Use 0% Tactical HUD 0 Map Filters NONE Filters NONE Steam 1 RUN: 792d48df-8e36-48d5-92f9-3ea644020e55